fUST/lending_fUST_20250227
["ID","MTS","AMOUNT","RATE_DAILY","PERIOD"]
[354608785,1740595890003,-500.0,0.00054246,120]
[354608787,1740595890012,-500.0,0.00054246,120]
[354608789,1740595890021,-2977.1,0.00054246,120]
[354608791,1740595890032,-500.0,0.00054246,120]
[354608807,1740595890043,-3444.22,0.00054246,120]
[354608809,1740595890196,-1010.42,0.00054246,120]
[354608811,1740595890206,-522.19,0.00054246,30]
[354608813,1740595890217,-968.128347,0.00054246,120]
[354608815,1740595890227,-989.6,0.00054246,120]
[354608817,1740595890238,-1121.27,0.00054246,120]
[354608819,1740595890249,-500.0,0.00054246,120]
[354608821,1740595890262,-968.128347,0.00054246,120]
[354608823,1740595890272,-1101.44,0.00054246,120]
[354608825,1740595890283,-500.0,0.00054246,45]
[354608827,1740595890293,-1764.14,0.00054246,120]
[354608829,1740595890303,-500.0,0.00054246,120]
[354608831,1740595890314,-588.25,0.00054246,120]
[354608833,1740595890325,-2377.1,0.00054246,120]
[354608835,1740595890335,-151.0,0.00054246,120]
[354608837,1740595890348,-852.55,0.00054246,120]
[354608839,1740595890358,-500.0,0.00054246,120]
[354608841,1740595890367,-1100.79,0.00054246,120]
[354608843,1740595890377,-500.0,0.00054246,120]
[354608845,1740595890387,-1552.98,0.00054246,120]
[354608847,1740595890396,-500.0,0.00054246,120]
[354608849,1740595890406,-500.0,0.00054246,120]
[354608851,1740595890415,-543.36,0.00054246,120]
[354608853,1740595890424,-797.98,0.00054246,120]
[354608855,1740595890434,-500.0,0.00054246,120]
[354608857,1740595890444,-951.27,0.00054246,120]
[354608859,1740595890454,-500.0,0.00054246,120]
[354608861,1740595890464,-888.97,0.00054246,120]
[354608863,1740595890474,-612.57,0.00054246,120]
[354608865,1740595890484,-2699.87,0.00054246,120]
[354608867,1740595890494,-151.0,0.00054246,120]
[354608869,1740595890503,-500.0,0.00054246,120]
[354608871,1740595890513,-1580.11,0.00054246,120]
[354608873,1740595890522,-158.542382,0.00054246,120]
[354608875,1740595890532,-500.0,0.00054246,120]
[354608877,1740595890542,-151.0,0.00054246,120]
[354608879,1740595890551,-1704.51,0.00054246,120]
[354608881,1740595890560,-254.428632,0.00054246,120]
[354608883,1740595890569,-254.428632,0.00054246,120]
[354608885,1740595890578,-500.0,0.00054246,120]
[354608887,1740595890588,-788.27,0.00054246,120]
[354608889,1740595890599,-1099.83,0.00054246,120]
[354608891,1740595890608,-1902.4,0.00054246,120]
[354608893,1740595890618,-500.0,0.00054246,120]
[354608895,1740595890628,-500.0,0.00054246,120]
[354608897,1740595890638,-500.0,0.00054246,120]
[354608899,1740595890649,-500.0,0.00054246,120]
[354608901,1740595890658,-500.0,0.00054246,120]
[354608903,1740595890668,-500.0,0.00054246,120]
[354608905,1740595890678,-500.0,0.00054246,120]
[354608907,1740595890688,-1372.49,0.00054246,120]
[354608909,1740595890698,-500.0,0.00054246,120]
[354608911,1740595890708,-500.0,0.00054246,120]
[354608913,1740595890718,-2314.27,0.00054246,120]
[354608915,1740595890728,-822.39,0.00054246,120]
[354608917,1740595890738,-1486.63,0.00054246,120]
[354608919,1740595890747,-901.59,0.00054246,120]
[354608921,1740595890757,-1677.06,0.00054246,120]
[354608923,1740595890767,-500.0,0.00054246,120]
[354608925,1740595890776,-1205.34,0.00054246,120]
[354608927,1740595890787,-500.0,0.00054246,120]
[354608930,1740595890797,-500.0,0.00054246,120]
[354608932,1740595890807,-2294.05,0.00054246,120]
[354608934,1740595890817,-500.0,0.00054246,120]
[354608936,1740595890827,-499.87,0.00054246,120]
[354608937,1740595890839,-1120.61,0.00054246,120]
[354608938,1740595890851,-604.64,0.00054246,120]
[354608939,1740595890861,-500.0,0.00054246,120]
[354608940,1740595890870,-1074.36,0.00054246,120]
[354608941,1740595890881,-500.0,0.00054246,120]
[354608942,1740595890890,-527.7,0.00054246,120]
[354608943,1740595890900,-806.28,0.00054246,120]
[354608944,1740595890910,-222.56033813,0.00054246,120]
[354608945,1740595890920,-1834.97,0.00054246,120]
[354608946,1740595890929,-500.0,0.00054246,120]
[354608947,1740595890940,-2497.980382,0.00054246,120]
[354608948,1740595890955,-2497.980382,0.00054246,120]
[354608949,1740595890964,-500.0,0.00054246,120]
[354608950,1740595890974,-841.31,0.00054246,120]
[354608951,1740595890984,-1149.59,0.00054246,120]
[354608952,1740595890998,-500.0,0.00054246,120]
[354608953,1740595891009,-500.0,0.00054246,120]
[354608954,1740595891019,-500.0,0.00054246,120]
[354608955,1740595891028,-504.48,0.00054246,120]
[354608956,1740595891038,-500.0,0.00054246,120]
[354608957,1740595891047,-610.98,0.00054246,120]
[354608958,1740595891057,-505.46111321,0.00054246,120]
[354608959,1740595891066,-500.0,0.00054246,120]
[354608960,1740595891076,-500.0,0.00054246,120]
[354608961,1740595891086,-919.11,0.00054246,120]
[354608962,1740595891098,-1139.22,0.00054246,120]
[354608963,1740595891108,-1427.81,0.00054246,120]
[354608964,1740595891118,-3966.28,0.00054246,120]
[354608965,1740595891127,-500.0,0.00054246,21]
[354608966,1740595891136,-1179.25,0.00054246,120]
[354608968,1740595891146,-643.49,0.00054246,120]
[354608969,1740595891155,-9738.58,0.00054246,120]
[354608971,1740595891166,-500.0,0.00054246,120]
[354608974,1740595891176,-801.82,0.00054246,120]
[354608976,1740595891186,-500.0,0.00054246,120]
[354608977,1740595891196,-911.86,0.00054246,120]
[354608980,1740595891206,-500.0,0.00054246,120]
[354608982,1740595891217,-552.77,0.00054246,120]
[354608984,1740595891226,-11052.45,0.00054246,120]
[354608986,1740595891236,-500.05,0.00054246,120]
[354608988,1740595891246,-500.0,0.00054246,120]
[354608990,1740595891256,-587.37,0.00054246,120]
[354608991,1740595891267,-3684.76,0.00054246,120]
[354608993,1740595891277,-517.75,0.00054246,120]
[354608995,1740595891287,-3499.84,0.00054246,120]
[354608997,1740595891296,-1015.05,0.00054246,120]
[354608999,1740595891305,-1570.34,0.00054246,120]
[354609001,1740595891314,-13581.8,0.00054246,120]
[354609003,1740595891324,-500.0,0.00054246,120]
[354609005,1740595891333,-15292.47,0.00054246,120]
[354609007,1740595891344,-500.0,0.00054246,120]
[354609009,1740595891355,-500.0,0.00054246,120]
[354609011,1740595891364,-500.0,0.00054246,120]
[354609013,1740595891373,-1020.31,0.00054246,120]
[354609015,1740595891383,-690.39,0.00054246,120]
[354609017,1740595891392,-3105.4,0.00054246,120]
[354609019,1740595891402,-834.44,0.00054246,30]
[354609021,1740595891412,-2309.16,0.00054246,120]
[354609023,1740595891422,-10799.99,0.00054246,120]
[354609026,1740595891431,-594.206144,0.00054246,120]
[354609028,1740595891441,-500.0,0.00054246,120]
[354609029,1740595891451,-850.01,0.00054246,120]
[354609031,1740595891461,-372.502142,0.00054246,110]
[354609033,1740595891471,-500.0,0.00054246,120]
[354609035,1740595891480,-594.206144,0.00054246,120]
[354609038,1740595891490,-4233.08,0.00054246,120]
[354609040,1740595891500,-190.52114,0.00054246,120]
[354609041,1740595891511,-4180.32,0.00054246,120]
[354609044,1740595891520,-372.502142,0.00054246,110]
[354609045,1740595891530,-190.52114,0.00054246,120]
[354609047,1740595891540,-462.552748,0.00054246,120]
[354609049,1740595891549,-2800.4,0.00054246,120]
[354609051,1740595891559,-583.3,0.00054246,120]
[354609054,1740595891569,-2084.49,0.00054246,120]
[354609055,1740595891579,-2951.73,0.00054246,120]
[354609058,1740595891588,-2431.59,0.00054246,120]
[354609059,1740595891600,-462.552748,0.00054246,120]
[354609061,1740595891609,-500.0,0.00054246,120]
[354609063,1740595891619,-1918.79,0.00054246,120]
[354609065,1740595891628,-1679.17,0.00054246,120]
[354609067,1740595891637,-530.85708414,0.00054246,120]
[354609069,1740595891647,-514.65,0.00054246,120]
[354609071,1740595891657,-2627.04,0.00054246,120]
[354609073,1740595891666,-1409.36,0.00054246,120]
[354609075,1740595891676,-785.21,0.00054246,120]
[354609077,1740595891687,-834.81,0.00054246,120]
[354609079,1740595891698,-3016.52,0.00054246,120]
[354609081,1740595891708,-2867.38,0.00054246,120]
[354609083,1740595891718,-684.79,0.00054246,120]
[354609085,1740595891727,-928.1,0.00054246,120]
[354609087,1740595891737,-511.43,0.00054246,120]
[354609089,1740595891747,-163172.77,0.00054246,7]
[354609091,1740595891756,-567.25,0.00054246,120]
[354609093,1740595891766,-173.30739,0.00054246,120]
[354609095,1740595891776,-4605.54,0.00054246,120]
[354609097,1740595891785,-884.36,0.00054246,120]
[354609099,1740595891795,-573.56,0.00054246,120]
[354609101,1740595891803,-1964.79,0.00054246,120]
[354609103,1740595891813,-173.307396,0.00054246,120]
[354609105,1740595891823,-29115.5,0.00054246,120]
[354609107,1740595891832,-644.01,0.00054246,120]
[354609109,1740595891842,-1853.52,0.00054246,120]
[354609111,1740595891854,-500.0,0.00054246,120]
[354609114,1740595891864,-627.73,0.00054246,120]
[354609115,1740595891874,-1150.38,0.00054246,120]
[354609117,1740595891883,-8691.74,0.00054246,120]
[354609119,1740595891893,-820.33,0.00054246,120]
[354609121,1740595891903,-1232.27,0.00054246,120]
[354609123,1740595891913,-8198.21,0.00054246,120]
[354609125,1740595891923,-1218.92,0.00054246,120]
[354609127,1740595891933,-1991.01,0.00054246,120]
[354609130,1740595891945,-200.0,0.00054246,7]
[354609131,1740595891955,-820.98,0.00054246,120]
[354609133,1740595891965,-555.9,0.00054246,120]
[354609135,1740595891975,-35881.26,0.00054246,120]
[354609137,1740595891985,-1000.0,0.00054246,2]
[354609139,1740595892001,-2923.8,0.00054246,120]
[354609142,1740595892010,-949.77,0.00054246,120]
[354609144,1740595892021,-500.0,0.00054246,120]
[354609146,1740595892031,-14356.2,0.00054246,120]
[354609148,1740595892042,-689.35,0.00054246,120]
[354609150,1740595892052,-853.36,0.00054246,120]
[354609152,1740595892063,-4865.11,0.00054246,120]
[354609154,1740595892073,-2475.11,0.00054246,120]
[354609156,1740595892083,-2671.56,0.00054246,120]
[354609158,1740595892092,-5089.13,0.00054246,120]
[354609160,1740595892104,-514.99,0.00054246,120]
[354609162,1740595892113,-44424.48,0.00054246,6]
[354609164,1740595892123,-500.0,0.00054246,120]
[354609166,1740595892132,-520.61,0.00054246,120]
[354609168,1740595892142,-1173.4,0.00054246,120]
[354609170,1740595892151,-500.0,0.00054246,120]
[354609172,1740595892162,-3489.83,0.00054246,120]
[354609174,1740595892172,-1066.43,0.00054246,120]
[354609176,1740595892182,-1957.38,0.00054246,120]
[354609178,1740595892191,-500.0,0.00054246,120]
[354609180,1740595892201,-2424.79,0.00054246,120]
[354609182,1740595892211,-21424.0,0.00054246,120]
[354609184,1740595892222,-519.69,0.00054246,120]
[354609186,1740595892232,-526.05,0.00054246,120]
[354609188,1740595892242,-1666.71,0.00054246,120]
[354609190,1740595892252,-3965.85,0.00054246,120]
[354609192,1740595892262,-500.0,0.00054246,120]
[354609194,1740595892273,-788.51,0.00054246,120]
[354609196,1740595892283,-1619.69,0.00054246,120]
[354609198,1740595892292,-1722.02,0.00054246,120]
[354609200,1740595892302,-4778.1,0.00054246,120]
[354609202,1740595892311,-2593.09,0.00054246,120]
[354609204,1740595892321,-1690.26,0.00054246,120]
[354609206,1740595892331,-589.86299557,0.00054246,120]
[354609208,1740595892341,-812.11,0.00054246,120]
[354609210,1740595892354,-710.16,0.00054246,120]
[354609212,1740595892364,-1536.25,0.00054246,120]
[354609214,1740595892374,-626.19,0.00054246,120]
[354609216,1740595892384,-541.13,0.00054246,120]
[354609218,1740595892394,-512.95,0.00054246,120]
[354609220,1740595892404,-1851.36,0.00054246,120]
[354609222,1740595892413,-153.85242043,0.00054246,120]
[354609224,1740595892423,-662.82,0.00054246,120]
[354609226,1740595892433,-10264.39,0.00054246,120]
[354609228,1740595892442,-810.19,0.00054246,120]
[354609230,1740595892452,-991.77,0.00054246,120]
[354609232,1740595892463,-3331.35,0.00054246,120]
[354609234,1740595892473,-151.0,0.00054246,120]
[354609236,1740595892483,-5881.5,0.00054246,120]
[354609238,1740595892493,-1213.93,0.00054246,120]
[354609240,1740595892502,-2374.13,0.00054246,120]
[354609242,1740595892512,-2465.59,0.00054246,120]
[354609244,1740595892521,-500.0,0.00054246,120]
[354609246,1740595892531,-782.08,0.00054246,120]
[354609248,1740595892541,-500.0,0.00054246,120]
[354609250,1740595892550,-1294.2,0.00054246,120]
[354609252,1740595892560,-7797.57,0.00054246,120]
[354609254,1740595892569,-1481.88,0.000543,30]
[354609256,1740595892579,-1600.81694162,0.000545,120]
[354609258,1740595892588,-150.0,0.000545,10]
[354609260,1740595892599,-500.0,0.0005452,30]
[354609262,1740595892609,-500.0,0.0005452,30]
[354609264,1740595892619,-151.0,0.0005452,120]
[354609266,1740595892628,-500.0,0.0005452,120]
[354609268,1740595892638,-828.49,0.0005452,120]
[354609270,1740595892647,-500.0,0.0005452,120]
[354609272,1740595892657,-151.0,0.0005452,120]
[354609273,1740595892667,-500.0,0.0005452,120]
[354609275,1740595892676,-840.04,0.0005452,120]
[354609277,1740595892686,-300.0,0.0005452,120]
[354609280,1740595892696,-500.0,0.0005452,120]
[354609281,1740595892705,-388.955738,0.0005452,120]
[354609283,1740595892715,-799.37,0.0005452,120]
[354609285,1740595892724,-388.955738,0.0005452,120]
[354609287,1740595892733,-500.0,0.0005452,120]
[354609289,1740595892743,-500.0,0.0005452,120]
[354609291,1740595892752,-500.0,0.0005452,120]
[354609293,1740595892761,-526.23,0.0005452,120]
[354609295,1740595892771,-525.22,0.0005452,120]
[354609297,1740595892780,-500.0,0.0005452,120]
[354609299,1740595892789,-692.43,0.0005452,120]
[354609301,1740595892799,-566.11,0.0005452,14]
[354609303,1740595892808,-1177.15,0.0005452,120]
[354609305,1740595892819,-500.0,0.0005452,120]
[354609307,1740595892828,-500.0,0.0005452,120]
[354609309,1740595892837,-1194.96,0.0005452,120]
[354609311,1740595892849,-500.0,0.0005452,120]
[354609313,1740595892858,-1734.78,0.0005452,120]
[354609315,1740595892868,-151.0,0.0005452,120]
[354609317,1740595892877,-1448.26,0.0005452,120]
[354609319,1740595892886,-500.0,0.0005452,120]
[354609321,1740595892895,-500.0,0.0005452,120]
[354609323,1740595892904,-500.0,0.0005452,120]
[354609325,1740595892914,-772.59,0.0005452,120]
[354609327,1740595892924,-576.98,0.0005452,120]
[354609329,1740595892934,-599.45,0.0005452,120]
[354609331,1740595892945,-500.0,0.0005452,120]
[354609333,1740595892955,-500.0,0.0005452,120]
[354609335,1740595892966,-582.65,0.0005452,120]
[354609337,1740595892976,-500.0,0.0005452,120]
[354609339,1740595892988,-518.67,0.0005452,120]
[354609340,1740595893000,-500.0,0.0005452,120]
[354609343,1740595893011,-524.39,0.0005452,120]
[354609345,1740595893022,-540.34,0.0005452,120]
[354609347,1740595893033,-707.66,0.0005452,120]
[354609348,1740595893044,-500.0,0.0005452,120]
[354609351,1740595893054,-879.42,0.0005452,120]
[354609352,1740595893064,-894.65,0.0005452,120]
[354609354,1740595893076,-500.0,0.0005452,120]
[354609356,1740595893086,-523.35,0.0005452,120]
[354609358,1740595893098,-500.0,0.0005452,120]
[354609361,1740595893108,-500.0,0.0005452,120]
[354609362,1740595893118,-500.0,0.0005452,120]
[354609364,1740595893128,-500.0,0.0005452,120]
[354609366,1740595893139,-500.0,0.0005452,120]
[354609368,1740595893149,-630.3,0.0005452,120]
[354609370,1740595893160,-500.0,0.0005452,120]
[354609372,1740595893170,-648.35943894,0.0005452,120]
[354609374,1740595893180,-757.41,0.0005452,120]
[354609391,1740595893332,-618.62,0.0005452,120]
[354609393,1740595893343,-1759.91,0.0005452,120]
[354609395,1740595893355,-616.782814,0.0005452,120]
[354609397,1740595893365,-616.782814,0.0005452,120]
[354609399,1740595893375,-1105.48,0.0005452,120]
[354609401,1740595893385,-849.13,0.0005452,120]
[354609403,1740595893394,-500.0,0.0005452,120]
[354609405,1740595893405,-578.35,0.0005452,120]
[354609407,1740595893414,-827.78,0.0005452,120]
[354609409,1740595893429,-1260.45,0.0005452,120]
[354609411,1740595893439,-624.52,0.0005452,120]
[354609413,1740595893449,-1553.65,0.0005452,120]
[354609415,1740595893459,-515.01,0.0005452,120]
[354609417,1740595893469,-558.26,0.0005452,120]
[354609419,1740595893479,-500.0,0.0005452,120]
[354609421,1740595893489,-527.02,0.0005452,120]
[354609423,1740595893499,-700.01,0.0005452,120]
[354609425,1740595893508,-500.0,0.0005452,120]
[354609427,1740595893518,-444.575532,0.0005452,120]
[354609429,1740595893528,-751.69,0.0005452,120]
[354609431,1740595893538,-500.0,0.0005452,15]
[354609433,1740595893548,-444.575532,0.0005452,120]
[354609435,1740595893558,-1613.85,0.0005452,120]
[354609437,1740595893567,-1300.61,0.0005452,120]
[354609438,1740595893577,-667.88,0.0005452,120]
[354609439,1740595893587,-2143.47,0.0005452,120]
[354609440,1740595893598,-500.0,0.0005452,120]
[354609441,1740595893608,-872.97,0.0005452,120]
[354609442,1740595893618,-500.0,0.0005452,120]
[354609443,1740595893628,-1346.61,0.0005452,120]
[354609445,1740595893638,-2396.98,0.0005452,120]
[354609447,1740595893648,-500.0,0.0005452,120]
[354609449,1740595893658,-640.62,0.0005452,120]
[354609451,1740595893668,-527.38067974,0.0005452,120]
[354609453,1740595893678,-1154.76,0.0005452,120]
[354609455,1740595893688,-500.0,0.0005452,120]
[354609457,1740595893698,-434.048086,0.0005452,120]
[354609459,1740595893708,-500.0,0.0005452,120]
[354609461,1740595893718,-434.048086,0.0005452,120]
[354609463,1740595893727,-500.0,0.0005452,120]
[354609465,1740595893738,-500.0,0.0005452,120]
[354609467,1740595893748,-1463.13,0.0005452,120]
[354609469,1740595893758,-500.0,0.0005452,120]
[354609471,1740595893767,-451.86676189,0.0005452,120]
[354609473,1740595893778,-2977.1,0.0005452,120]
[354609475,1740595893788,-395.78938376,0.0005452,120]
[354609477,1740595893799,-3444.22,0.0005452,120]
[354609479,1740595893809,-1010.42,0.0005452,120]
[354609481,1740595893819,-522.19,0.0005452,30]
[354609483,1740595893830,-968.128347,0.0005452,120]
[354609485,1740595893841,-989.6,0.0005452,120]
[354609487,1740595893854,-1121.27,0.0005452,120]
[354609489,1740595893864,-500.0,0.0005452,120]
[354609491,1740595893874,-968.128347,0.0005452,120]
[354609494,1740595893891,-1101.44,0.0005452,120]
[354609496,1740595893901,-500.0,0.0005452,45]
[354609498,1740595893911,-1764.14,0.0005452,120]
[354609500,1740595893922,-282.67480403,0.0005452,120]
[354609502,1740595893932,-588.25,0.0005452,120]
[354609504,1740595893943,-2377.1,0.0005452,120]
[354609506,1740595893957,-151.0,0.0005452,120]
[354609508,1740595893968,-852.55,0.0005452,120]
[354609510,1740595893978,-500.0,0.0005452,120]
[354609512,1740595893989,-1100.79,0.0005452,120]
[354609514,1740595894000,-500.0,0.0005452,120]
[354609516,1740595894012,-1552.98,0.0005452,120]
[354609518,1740595894022,-500.0,0.0005452,120]
[354609520,1740595894034,-500.0,0.0005452,120]
[354609522,1740595894043,-543.36,0.0005452,120]
[354609524,1740595894054,-797.98,0.0005452,120]
[354609526,1740595894063,-500.0,0.0005452,120]
[354609528,1740595894073,-951.27,0.0005452,120]
[354609530,1740595894083,-500.0,0.0005452,120]
[354609532,1740595894093,-888.97,0.0005452,120]
[354609534,1740595894105,-612.57,0.0005452,120]
[354609536,1740595894115,-2699.87,0.0005452,120]
[354609538,1740595894125,-151.0,0.0005452,120]
[354609540,1740595894136,-500.0,0.0005452,120]
[354609542,1740595894147,-1580.11,0.0005452,120]
[354609544,1740595894159,-500.0,0.0005452,120]
[354609546,1740595894169,-151.0,0.0005452,120]
[354609548,1740595894178,-1704.51,0.0005452,120]
[354609550,1740595894189,-254.428632,0.0005452,120]
[354609552,1740595894199,-254.428632,0.0005452,120]
[354609554,1740595894210,-500.0,0.0005452,120]
[354609556,1740595894220,-788.27,0.0005452,120]
[354609558,1740595894230,-1099.83,0.0005452,120]
[354609560,1740595894240,-1902.4,0.0005452,120]
[354609562,1740595894250,-500.0,0.0005452,120]
[354609564,1740595894259,-500.0,0.0005452,120]
[354609566,1740595894270,-500.0,0.0005452,120]
[354609568,1740595894280,-500.0,0.0005452,120]
[354609570,1740595894290,-500.0,0.0005452,120]
[354609572,1740595894300,-500.0,0.0005452,120]
[354609574,1740595894310,-500.0,0.0005452,120]
[354609576,1740595894319,-1372.49,0.0005452,120]
[354609578,1740595894329,-500.0,0.0005452,120]
[354609580,1740595894339,-500.0,0.0005452,120]
[354609582,1740595894349,-2314.27,0.0005452,120]
[354609584,1740595894359,-822.39,0.0005452,120]
[354609586,1740595894370,-1486.63,0.0005452,120]
[354609588,1740595894380,-901.59,0.0005452,120]
[354609590,1740595894390,-500.0,0.0005452,120]
[354609592,1740595894399,-1677.06,0.0005452,120]
[354609594,1740595894409,-1205.34,0.0005452,120]
[354609596,1740595894419,-500.0,0.0005452,120]
[354609598,1740595894429,-500.0,0.0005452,120]
[354609600,1740595894439,-2294.05,0.0005452,120]
[354609602,1740595894448,-500.0,0.0005452,120]
[354609605,1740595894458,-1120.61,0.0005452,120]
[354609606,1740595894468,-500.0,0.0005452,120]
[354609608,1740595894478,-604.64,0.0005452,120]
[354609610,1740595894488,-1074.36,0.0005452,120]
[354609613,1740595894498,-500.0,0.0005452,120]
[354609615,1740595894509,-527.7,0.0005452,120]
[354609616,1740595894518,-806.28,0.0005452,120]
[354609619,1740595894528,-1834.97,0.0005452,120]
[354609621,1740595894537,-500.0,0.0005452,120]
[354609622,1740595894547,-2497.980382,0.0005452,120]
[354609624,1740595894557,-500.0,0.0005452,120]
[354609627,1740595894567,-2497.980389,0.0005452,120]
[354609629,1740595894576,-841.31,0.0005452,120]
[354609630,1740595894586,-1149.59,0.0005452,120]
[354609632,1740595894596,-500.0,0.0005452,120]
[354609635,1740595894606,-500.0,0.0005452,120]
[354609637,1740595894616,-500.0,0.0005452,120]
[354609639,1740595894629,-504.48,0.0005452,120]
[354609641,1740595894639,-500.0,0.0005452,120]
[354609643,1740595894649,-610.98,0.0005452,120]
[354609645,1740595894658,-500.0,0.0005452,120]
[354609647,1740595894668,-500.0,0.0005452,120]
[354609649,1740595894678,-919.11,0.0005452,120]
[354609651,1740595894687,-1139.22,0.0005452,120]
[354609653,1740595894697,-1427.81,0.0005452,120]
[354609655,1740595894707,-3966.28,0.0005452,120]
[354609657,1740595894716,-500.0,0.0005452,21]
[354609659,1740595894726,-1179.25,0.0005452,120]
[354609661,1740595894736,-643.49,0.0005452,120]
[354609663,1740595894745,-9738.58,0.0005452,120]
[354609665,1740595894755,-500.0,0.0005452,120]
[354609667,1740595894764,-801.82,0.0005452,120]
[354609669,1740595894774,-500.0,0.0005452,120]
[354609671,1740595894785,-911.86,0.0005452,120]
[354609674,1740595894794,-500.0,0.0005452,120]
[354609676,1740595894804,-552.77,0.0005452,120]
[354609677,1740595894813,-11052.45,0.0005452,120]
[354609680,1740595894823,-500.05,0.0005452,120]
[354609682,1740595894832,-500.0,0.0005452,120]
[354609684,1740595894842,-587.37,0.0005452,120]
[354609686,1740595894855,-517.75,0.0005452,120]
[354609688,1740595894864,-3684.76,0.0005452,120]
[354609690,1740595894873,-3499.84,0.0005452,120]
[354609692,1740595894883,-1015.05,0.0005452,120]
[354609694,1740595894892,-13581.8,0.0005452,120]
[354609696,1740595894902,-1570.34,0.0005452,120]
[354609698,1740595894912,-15292.47,0.0005452,120]
[354609700,1740595894922,-500.0,0.0005452,120]
[354609702,1740595894932,-500.0,0.0005452,120]
[354609704,1740595894942,-520.62914685,0.0005452,120]
[354609706,1740595894952,-500.0,0.0005452,120]
[354609708,1740595894962,-1020.31,0.0005452,120]
[354609710,1740595894972,-690.39,0.0005452,120]
[354609712,1740595894982,-3105.4,0.0005452,120]
[354609714,1740595894997,-834.44,0.0005452,30]
[354609716,1740595895007,-2309.16,0.0005452,120]
[354609718,1740595895016,-10799.99,0.0005452,120]
[354609720,1740595895026,-594.206144,0.0005452,120]
[354609722,1740595895036,-500.0,0.0005452,120]
[354609724,1740595895046,-850.01,0.0005452,120]
[354609726,1740595895056,-372.502142,0.0005452,110]
[354609728,1740595895065,-500.0,0.0005452,120]
[354609730,1740595895076,-594.206144,0.0005452,120]
[354609732,1740595895087,-4233.08,0.0005452,120]
[354609734,1740595895098,-190.52114,0.0005452,120]
[354609736,1740595895108,-4180.32,0.0005452,120]
[354609738,1740595895119,-372.502146,0.0005452,110]
[354609740,1740595895128,-190.521132,0.0005452,120]
[354609742,1740595895138,-462.552748,0.0005452,120]
[354609744,1740595895148,-2800.4,0.0005452,120]
[354609746,1740595895159,-583.3,0.0005452,120]
[354609748,1740595895168,-2084.49,0.0005452,120]
[354609750,1740595895180,-2951.73,0.0005452,120]
[354609752,1740595895190,-2431.59,0.0005452,120]
[354609754,1740595895200,-462.552748,0.0005452,120]
[354609756,1740595895211,-351.10676789,0.0005452,120]
[354609758,1740595895221,-1918.79,0.0005452,120]
[354609760,1740595895231,-1679.17,0.0005452,120]
[354609762,1740595895241,-514.65,0.0005452,120]
[354609764,1740595895251,-2627.04,0.0005452,120]
[354609766,1740595895260,-1409.36,0.0005452,120]
[354609768,1740595895271,-785.21,0.0005452,120]
[354609770,1740595895281,-834.81,0.0005452,120]
[354609772,1740595895291,-3016.52,0.0005452,120]
[354609774,1740595895301,-2867.38,0.0005452,120]
[354609776,1740595895310,-684.79,0.0005452,120]
[354609778,1740595895320,-928.1,0.0005452,120]